[Event "SVK ECo-C Extraliga 2021-22"]
[Site "Slovakia"]
[Date "2022.06.11"]
[Round "10.3"]
[White "Roubalik, Jakub"]
[Black "Sipos, Istvan"]
[Result "1/2-1/2"]
[ECO "A65"]
[WhiteElo "2389"]
[BlackElo "2476"]
[Annotator "TA"]
[PlyCount "105"]
[EventDate "2021.10.21"]
[EventType "team-tourn"]
[EventCountry "SVK"]
[SourceTitle "playchess.com"]
[Source "ChessBase"]
[SourceQuality "1"]
[TimeControl "40/5400+30:1800+30"]

{[%evp 16,105,37,27,24,0,34,6,30,41,41,31,71,59,55,20,62,65,66,59,65,67,69,83,91,62,67,0,83,52,64,33,22,34,45,37,156,169,168,73,427,422,556,550,541,539,535,531,500,404,490,484,451,111,107,0,457,414,405,387,566,327,6327,29,291,194,201,200,182,193,194,170,183,202,202,159,158,160,174,41,41,41,41,42,42,43,42,8,8,0,8,-15]} 1. d4 {[%emt 0:00:03]} Nf6 {[%emt 0:00:06]} 2. c4 {[%emt 0:00:07]} c5 {[%emt 0:00:19]} 3. d5 {[%emt 0:00:09]} e6 {[%emt 0:00:05]} 4. Nc3 {[%emt 0:00:13]} exd5 {[%emt 0:00:06]} 5. cxd5 {[%emt 0:00:08]} d6 {[%emt 0:00:23]} 6. e4 {[%emt 0:00:12]} g6 {[%emt 0:00:05]} 7. Bd3 {[%emt 0:00:42]} Bg7 {[%emt 0:00:14]} 8. h3 $1 {[%emt 0:00:05][%mdl 4] is recently more successful than 8.Nge2.} O-O {[%emt 0:00:06]} 9. Bg5 {[%emt 0:00:07]} Re8 {[%emt 0:07:49][%cal Of6e4] A65: Modern Benoni: 6 e4.} 10. Nge2 {[%emt 0:00:11]} h6 {[%emt 0:10:45]} 11. Be3 {[%emt 0:00:26]} c4 {[%emt 0:00:36]} 12. Bc2 {[%emt 0:00:42]} b5 {[%emt 0:01:44]} 13. a3 {[%emt 0:02:43]} a6 {[%emt 0:17:31]} 14. O-O {[%emt 0:01:58]} Nbd7 {[%emt 0:00:25] [#]} 15. f4 $146 {[%emt 0:13:16]} ({Predecessor:} 15. Qd2 h5 16. f4 Nh7 17. Bd4 Bxd4+ 18. Nxd4 Bb7 19. Kh1 Rc8 20. Rae1 Rc7 21. Nf3 {1-0 (38) Stocek,J (2600)-Simacek,P (2462) Pardubice 2011}) 15... Bb7 {[%emt 0:03:45]} 16. Qd2 {[%emt 0:04:22]} Qe7 {[%emt 0:08:56]} 17. Ng3 {[%emt 0:03:53]} Rad8 {[%emt 0:14:54]} 18. Rae1 {[%emt 0:04:17]} Qf8 {[%emt 0:01:34]} 19. Bd4 {[%emt 0:33:26]} Nh7 {[%emt 0:01:57]} 20. Nge2 {[%emt 0:03:55]} Nhf6 {[%emt 0:04:50]} 21. Ng3 {[%emt 0:03:40]} Nh7 $1 {[%emt 0:00:12]} 22. h4 {[%emt 0:04:51]} h5 {[%emt 0:02:06]} 23. Bf2 {[%emt 0:15:45][%cal Oe4e5]} Nhf6 {[%emt 0:02:48]} 24. e5 $36 {[%emt 0:00:45][%mdl 2048] White has good play.} dxe5 {[%emt 0:03:34]} 25. f5 {[%emt 0:00:05]} e4 {[%emt 0:10:18]} (25... Bh6 $14 26. Be3 (26. Qd1 Qg7 $15) 26... Bf4 27. Bxf4 exf4 28. Qxf4 Rxe1 29. Rxe1 Re8 30. Rxe8 Qxe8) 26. fxg6 $16 {[%emt 0:01:03]} fxg6 {[%emt 0:00:07][%cal Oe4e3]} 27. Ngxe4 {[%emt 0:01:05]} (27. Bxe4 $18 Ne5 28. Bd4) 27... b4 $2 {[%emt 0:03:04][%mdl 8192]} (27... Nxe4 $16 28. Nxe4 Bxb2) 28. axb4 $18 {[%emt 0:00:44]} Qxb4 {[%emt 0:00:05]} 29. Nxf6+ {[%emt 0:00:57]} Nxf6 {[%emt 0:00:04]} 30. Rxe8+ {[%emt 0:00:52]} Rxe8 {[%emt 0:00:16]} 31. Bxg6 {[%emt 0:00:31]} Rf8 {[%emt 0:01:35]} 32. Bd4 {[%emt 0:04:36]} Qe7 {[%emt 0:01:56]} 33. Re1 {[%emt 0:00:25]} Qc7 {[%emt 0:02:13] [#] aiming for ...Ng4.} 34. Be5 $2 {[%emt 0:00:34]} (34. Re6 $18 {is more deadly.}) 34... Qb6+ {[%emt 0:00:16]} 35. Bd4 $2 {[%emt 0:00:12][%mdl 8192]} (35. Qe3 $16 Qxe3+ 36. Rxe3) 35... Qc7 {[%emt 0:00:01]} 36. Bf5 {[%emt 0:00:35]} Bc8 {[%emt 0:03:02]} 37. Bxc8 {[%emt 0:00:20]} Rxc8 {[%emt 0:00:25]} (37... Qxc8 $142 38. Re5 Rf7) 38. Qg5 {[%emt 0:00:57] Strongly threatening Ne4.} Ng4 $2 {[%emt 0:00:13]} (38... Nh7 39. Qe3 Bxd4 40. Qxd4 Qc5 41. Qxc5 Rxc5) 39. Bxg7 $2 {[%emt 0:00:31] Active counter play!} (39. d6 $18 Qf7 40. Re7) 39... Qxg7 {[%emt 0:00:57][%mdl 8192]} (39... Qh2+ $1 $11 {and Black stays safe.} 40. Kf1 Qh1+ 41. Ke2 Qxg2+ 42. Kd1 Nf2+ 43. Ke2 Ng4+ 44. Kd1 Nf2+ 45. Kc2 (45. Ke2 Ng4+ $11) 45... Nd3+ 46. Re2 Qxg5 47. hxg5 Kxg7) 40. Re7 {[%emt 0:00:28][%csl Ge7][%cal Rg5g7] Chess con chili.} Qxg5 {[%emt 0:00:10]} 41. hxg5 {[%emt 0:30:01][%mdl 4096] Endgame And now d6 would win. KRN-KRN} Kf8 {[%emt 0:01:40]} 42. Rh7 {[%emt 0:00:00]} Kg8 {[%emt 0:03:18] Against Rh8+} 43. Ra7 {[%emt 0:00:00] Black must now prevent d6.} Re8 {[%emt 0:04:58][%cal Re8e1]} 44. Kf1 {[%emt 0:00:00] Prevents Re1+.} Re3 {[%emt 0:03:26]} 45. d6 {[%emt 0:00:00]} Nh2+ {[%emt 0:01:57]} 46. Kg1 {[%emt 0:00:00] White threatens Nd5 and mate.} Ng4 {[%emt 0:00:04][%cal Re3e1] [#]} 47. Re7 {[%emt 0:01:34]} (47. g3 $1 $18 Rxg3+ 48. Kf1) 47... Rxe7 $14 {[%emt 0:00:20][%mdl 64] Remove Defender} 48. dxe7 {[%emt 0:00:01] KN-KN} Kf7 {[%emt 0:00:07]} 49. Nd5 {[%emt 0:00:06][%cal Og5g6] Threatens to win with g6+!} ({But not} 49. g6+ Kxe7 50. Nd5+ Ke6 51. Nc7+ Kf6 $11) 49... Ne5 {[%emt 0:00:07]} 50. Kf2 {[%emt 0:00:45]} Ng6 $1 {[%emt 0:00:37]} 51. Kf3 {[%emt 0:02:42]} Nxe7 {[%emt 0:00:16]} 52. Ne3 {[%emt 0:00:04]} Kg6 {[%emt 0:05:03]} 53. Ke4 {White really could win this.  Weighted Error Value: White=0.59/Black=0.35} 1/2-1/2

[Event "SVK ECo-C Extraliga 2021-22"]
[Site "Slovakia"]
[Date "2022.06.11"]
[Round "10.4"]
[White "Kraus, Tomas"]
[Black "Jurcik, Martin"]
[Result "1/2-1/2"]
[ECO "D27"]
[WhiteElo "2477"]
[BlackElo "2391"]
[Annotator "TA"]
[PlyCount "62"]
[EventDate "2021.10.21"]
[EventType "team-tourn"]
[EventCountry "SVK"]
[SourceTitle "playchess.com"]
[Source "ChessBase"]
[SourceQuality "1"]
[TimeControl "40/5400+30:1800+30"]

{[%evp 21,62,33,11,11,20,8,16,10,16,20,41,42,42,47,43,39,44,15,24,0,41,11,16,0,0,0,0,0,0,0,2,0,0,0,0,0,0,0,0,0,0,0,0]} 1. d4 {[%emt 0:00:25]} d5 {[%emt 0:00:50]} 2. Nf3 {[%emt 0:04:15]} e6 {[%emt 0:00:56]} 3. c4 {[%emt 0:03:52]} dxc4 {[%emt 0:01:57]} 4. e3 {[%emt 0:02:45]} Nf6 {[%emt 0:01:01]} 5. Bxc4 {[%emt 0:00:36]} c5 {[%emt 0:01:29]} 6. O-O {[%emt 0:01:03]} a6 {[%emt 0:01:40]} 7. b3 {[%emt 0:04:52]} b5 {[%emt 0:11:41]} 8. Be2 {[%emt 0:00:18]} Bb7 {[%emt 0:02:06]} 9. Bb2 {[%emt 0:00:15]} Nbd7 {[%emt 0:01:34]} 10. a4 {[%emt 0:02:40]} b4 {[%emt 0:03:38]} 11. Nbd2 {[%emt 0:00:35]} Be7 {[%emt 0:02:12]} 12. Nc4 {[%emt 0:02:34] D27: Queen's Gambit Accepted: Classical main line: 7 e4!? and 7 a4.} O-O {[%emt 0:00:29]} 13. Nfe5 {[%emt 0:05:05]} cxd4 {[%emt 0:09:47]} 14. Nxd7 {[%emt 0:01:58]} Nxd7 {[%emt 0:04:56]} 15. Bxd4 {[%emt 0:00:28]} a5 {[%emt 0:07:20]} 16. Bf3 {[%emt 0:04:18]} Bxf3 {[%emt 0:08:05]} 17. Qxf3 {[%emt 0:00:07]} Bf6 {[%emt 0:00:15]} 18. Rfd1 {[%emt 0:06:45] [#]} Qc7 $146 {[%emt 0:06:19] Prevents Qc6.} ({Predecessor:} 18... Bxd4 19. Rxd4 Qc7 20. Qg3 e5 21. Rb1 f6 22. Rd6 Nc5 {½-½ (22) Filin,E (2342)-Dugushov,S (2119) ICCF email 2018}) 19. Rac1 {[%emt 0:17:17][%cal Oc4b6] [#] Black must now prevent Nb6!} Bxd4 {[%emt 0:02:58]} 20. Rxd4 {[%emt 0:00:47]} Rfd8 {[%emt 0:19:53]} 21. Rcd1 {[%emt 0:13:45][%cal Od4d7] And now Rxd7! would win.} Nc5 {[%emt 0:09:59] [#] The position is equal.} 22. Qc6 $1 {[%emt 0:20:06]} Qxc6 {[%emt 0:00:12]} 23. Rxd8+ {[%emt 0:00:01]} Qe8 $1 {[%emt 0:00:08]} 24. Rxe8+ {[%emt 0:00:01]} Rxe8 {[%emt 0:00:07]} 25. Nxa5 $11 {[%emt 0:00:09][%mdl 4096] Endgame aiming for Rd4. KRN-KRN} Ra8 {[%emt 0:00:05]} 26. Rd4 {[%emt 0:00:57][%cal Od4b4]} Kf8 $1 {[%emt 0:03:11]} 27. Nc6 {[%emt 0:01:12]} Rc8 $1 {[%emt 0:00:33]} 28. Rd8+ {[%emt 0:06:42]} Rxd8 {[%emt 0:00:13]} 29. Nxd8 {[%emt 0:00:02]} Nxb3 {[%emt 0:00:13]} (29... Ke8 $5 30. Nc6 Nxa4 $11) 30. Nc6 {[%emt 0:00:02] Against Na5} Nc5 {[%emt 0:00:13] Strongly threatening ...b3.} 31. Nxb4 {[%emt 0:00:02]} Nxa4 {Weighted Error Value: White=0.06 (flawless) /Black=0.05 (flawless)} 1/2-1/2

[Event "SVK ECo-C Extraliga 2021-22"]
[Site "Slovakia"]
[Date "2022.06.11"]
[Round "10.4"]
[White "Toth, Ervin"]
[Black "Motuz, Karol"]
[Result "0-1"]
[ECO "D36"]
[WhiteElo "2436"]
[BlackElo "2315"]
[Annotator "TA"]
[PlyCount "128"]
[EventDate "2021.10.21"]
[EventType "team-tourn"]
[EventCountry "SVK"]
[SourceTitle "playchess.com"]
[Source "ChessBase"]
[SourceQuality "1"]
[TimeControl "40/5400+30:1800+30"]

{[%evp 21,128,17,22,16,15,0,11,8,11,0,0,0,0,0,5,0,8,-9,-7,-9,-9,-34,-11,-20,-8,-30,-27,-37,-38,-37,-33,-50,-27,-43,-27,-36,-35,-131,-154,-243,-229,-312,-310,-307,-291,-376,-302,-325,-248,-312,-238,-252,-195,-508,-494,-414,-309,-529,-521,-989,-993,-857,-473,-641,-602,-722,-707,-666,-540,-29974,-29975,-1972,-370,-370,-370,-370,-353,-333,-354,-349,-346,-349,-349,-371,-331,-354,-304,-425,-400,-422,-414,-416,-385,-675,-650,-590,-504,-862,-575,-1085,-419,-415,-383,-1302,-1337,-1393,-1210,-927,-887]} 1. d4 {[%emt 0:00:09]} e6 {[%emt 0:00:34]} 2. c4 {[%emt 0:00:06]} d5 {[%emt 0:00:21]} 3. Nc3 {[%emt 0:00:11]} Nf6 {[%emt 0:00:12]} 4. cxd5 {[%emt 0:01:31]} exd5 {[%emt 0:00:06]} 5. Bg5 {[%emt 0:00:09]} c6 {[%emt 0:00:26]} 6. Qc2 {[%emt 0:00:28]} Nbd7 {[%emt 0:00:42]} 7. e3 {[%emt 0:00:08]} Be7 {[%emt 0:00:04]} 8. Bd3 {[%emt 0:00:16]} h6 {[%emt 0:00:38]} 9. Bh4 {[%emt 0:00:17]} Nh5 {[%emt 0:00:36]} 10. Bxe7 {[%emt 0:00:57]} Qxe7 {[%emt 0:00:02]} 11. Nge2 {[%emt 0:01:55]} Nb6 {[%emt 0:00:38]} 12. h3 {[%emt 0:03:08] D36: Queen's Gambit Declined: Exchange Variation: Main line (5 Bg5 c6 6 Qc2).} Bd7 {[%emt 0:02:47]} 13. O-O-O {[%emt 0:06:49]} O-O-O {[%emt 0:00:21]} 14. Kb1 {[%emt 0:01:42] The position is equal.} Kb8 {[%emt 0:00:15]} 15. Nc1 {[%emt 0:02:32]} Nf6 {[%emt 0:02:53][%cal Bh5f6,Bf6e8,Be8d6,Bd6c4][%mdl 32]} 16. Nb3 {[%emt 0:00:38] [#]} Ne8 $146 {[%emt 0:06:23]} ({Predecessor:} 16... Bc8 17. Nc5 Nfd7 18. N3a4 Nxc5 19. Nxc5 Nd7 20. b4 Nxc5 21. bxc5 Qg5 22. g3 g6 {½-½ (85) Akshat,K (2395)-Thorsteinsson,T (2299) Budapest 2018}) 17. Nc5 {[%emt 0:02:31]} Nd6 {[%emt 0:01:45]} 18. Qb3 {[%emt 0:00:24]} Qf6 {[%emt 0:03:48]} 19. Rhf1 {[%emt 0:08:59]} Bf5 {[%emt 0:04:14]} 20. Ka1 {[%emt 0:08:29]} Rhe8 {[%emt 0:03:26]} 21. N3a4 {[%emt 0:07:50]} Bxd3 {[%emt 0:09:51]} 22. Rxd3 {[%emt 0:01:00]} Ndc4 {[%emt 0:02:48]} 23. Rdd1 {[%emt 0:05:21]} h5 {[%emt 0:06:11]} 24. Nxb6 {[%emt 0:03:27]} axb6 {[%emt 0:01:49]} 25. Nd3 {[%emt 0:01:02]} h4 {[%emt 0:04:40]} 26. Qb4 {[%emt 0:01:32]} Qe7 {[%emt 0:03:24]} 27. Qc3 {[%emt 0:00:45]} f6 {[%emt 0:04:37]} 28. Rfe1 {[%emt 0:01:30]} Qe4 {[%emt 0:03:21]} 29. f3 {[%emt 0:10:38] [#] Black keeps a firm grip on the game.} (29. Rg1 $15) 29... Qg6 $1 $17 {[%emt 0:02:28] Black is more active.} 30. e4 {[%emt 0:15:11]} (30. Nf4 $17 Qg3 31. b3 Nxe3 32. Rxe3 Qxf4 33. Rde1 Rxe3 34. Qxe3 Qxe3 35. Rxe3) 30... Qxg2 $19 {[%emt 0:18:51]} 31. b3 {[%emt 0:00:59]} dxe4 {[%emt 0:02:52]} 32. fxe4 {[%emt 0:00:37]} Na3 {[%emt 0:01:43] And now ...Nc2+ would win.} 33. Rd2 {[%emt 0:03:41] Against Nc2+} Qg5 {[%emt 0:03:21][%cal Od8d4] Hoping for ...Rxd4!} 34. Qb2 {[%emt 0:03:48]} Qa5 {[%emt 0:05:07] Against d5} (34... Rxd4 35. Rg2 Qxg2 36. Qxg2 Rxd3 37. Rc1 $17) 35. Nf4 {[%emt 0:02:00]} g5 {[%emt 0:03:27]} 36. Nh5 {[%emt 0:00:38]} Re6 {[%emt 0:00:39] Threatens to win with ...Qb4.} 37. Ng7 $2 {[%emt 0:03:19]} (37. Ree2) 37... Re7 {[%emt 0:00:23]} 38. Nh5 {[%emt 0:01:33]} Rd6 {[%emt 0:01:45]} 39. Red1 $2 {[%emt 0:01:53]} (39. Rde2 {was worth a try.}) 39... Rxe4 {[%emt 0:00:37]} 40. d5 {[%emt 0:00:09]} Rxd5 {[%emt 0:01:15]} 41. Rxd5 {[%emt 0:31:07]} Qxd5 {[%emt 0:01:45]} 42. Rc1 {[%emt 0:00:00]} Qd6 {[%emt 0:07:50] [#] aiming for ...Rd4.} 43. Nxf6 {[%emt 0:00:00]} Rd4 {[%emt 0:01:42] Strongly threatening ...Rd1.} 44. Ne8 {[%emt 0:00:00]} Qb4 {[%emt 0:01:05]} 45. Ng7 {[%emt 0:00:00]} Rd2 {[%emt 0:04:11]} 46. Qe5+ {[%emt 0:00:00]} Qd6 $2 {[%emt 0:00:08]} (46... Ka7 {( -> ...Nb5)} 47. Ne8 Nc2+ 48. Kb1 Nd4) 47. Qxd6+ {[%emt 0:00:00]} Rxd6 {[%emt 0:00:01][%mdl 4096] Endgame KRN-KRN} 48. Kb2 {[%emt 0:00:00]} Nb5 {[%emt 0:00:27]} 49. Rc2 {[%emt 0:00:00]} Rd3 {[%emt 0:00:51]} 50. Ne6 {[%emt 0:00:00]} Rg3 {[%emt 0:04:20]} ({Avoid the trap} 50... Rxh3 $2 51. Nxg5 Rg3 52. Ne4) 51. Rd2 {[%emt 0:00:00]} Nc3 {[%emt 0:01:00]} ({Wrong is} 51... Rxh3 $2 52. a4 Re3 53. Nxg5 $19) 52. Rd8+ {[%emt 0:00:00]} Ka7 {[%emt 0:00:29]} 53. a4 {[%emt 0:00:00] Threatening mate with Nc7.} Nd5 {[%emt 0:03:18] Against Nc7} ({Don't take} 53... Rxh3 54. Nc7 Rh2+ 55. Kxc3 $18) 54. Rd7 {[%emt 0:00:00]} Rxh3 {[%emt 0:03:04]} 55. Nxg5 {[%emt 0:00:00]} Rh2+ {[%emt 0:00:38]} 56. Ka3 {[%emt 0:00:00]} Rg2 {[%emt 0:01:23]} 57. Ne4 {[%emt 0:02:09]} (57. Ne6 Nc3 58. b4) 57... h3 {[%emt 0:03:30]} 58. Nd6 {[%emt 0:00:05]} Ka6 {[%emt 0:01:47]} 59. Rxb7 {[%emt 0:04:09]} (59. Rh7 $142 h2 60. b4) 59... c5 {[%emt 0:00:41]} 60. b4 {[%emt 0:02:43]} Rg3+ {[%emt 0:00:46]} (60... cxb4+ $142 61. Kb3 Rg3+ 62. Kb2 Nc3) 61. Kb2 {[%emt 0:00:06]} cxb4 {[%emt 0:00:23] ...Nc3 is the strong threat.} 62. Rd7 $2 {[%emt 0:02:20]} (62. Rb8 Ka7 63. Rb7+ Ka6 64. Rb8) 62... Nc3 {[%emt 0:00:34] Black is clearly winning.} 63. Kb3 {[%emt 0:00:37]} Ne4+ {[%emt 0:01:02]} 64. Kxb4 {[%emt 0:00:02]} Rd3 {[%emt 0:00:21] Weighted Error Value: White=0.71/Black=0.41} 0-1

[Event "SVK ECo-C Extraliga 2021-22"]
[Site "Slovakia"]
[Date "2022.06.11"]
[Round "10.4"]
[White "Mikrut, Dariusz"]
[Black "Bokros, Albert"]
[Result "1/2-1/2"]
[ECO "D38"]
[WhiteElo "2349"]
[BlackElo "2447"]
[Annotator "TA"]
[PlyCount "48"]
[EventDate "2021.10.21"]
[EventType "team-tourn"]
[EventCountry "SVK"]
[SourceTitle "playchess.com"]
[Source "ChessBase"]
[SourceQuality "1"]
[TimeControl "40/5400+30:1800+30"]

{[%evp 11,48,0,0,0,0,0,0,-7,37,-13,-18,-12,0,0,13,17,17,0,0,0,27,53,38,30,38,12,20,27,51,35,42,9,6,6,7,5,12,0,37]} 1. d4 {[%emt 0:03:12]} d5 {[%emt 0:02:54]} 2. c4 {[%emt 0:00:23]} e6 {[%emt 0:00:09]} 3. Nf3 {[%emt 0:00:05]} Nf6 {[%emt 0:00:30]} 4. Nc3 {[%emt 0:00:07]} Bb4 {[%emt 0:00:23]} 5. cxd5 {[%emt 0:00:05]} exd5 {[%emt 0:00:05]} 6. Qc2 {[%emt 0:01:59]} O-O {[%emt 0:01:08] 6...0-0 scores better than 6...c5.} 7. Bg5 {[%emt 0:01:51] E32: Nimzo-Indian: Classical (4 Qc2): 4...0-0.} h6 {[%emt 0:01:13]} 8. Bh4 {[%emt 0:00:18]} c5 {[%emt 0:02:07]} 9. e3 {[%emt 0:00:06]} Nc6 {[%emt 0:01:29]} 10. a3 {[%emt 0:05:20]} ({Better is} 10. dxc5 $14 Be6 11. Be2) 10... Bxc3+ $11 {[%emt 0:05:59]} 11. bxc3 {[%emt 0:00:09]} c4 {[%emt 0:02:52] [#]} (11... g5 $5 12. Bg3 cxd4 $11) 12. Nd2 $146 {[%emt 0:02:36]} ({Predecessor:} 12. Be2 g5 13. Bg3 Ne4 14. Bxc4 dxc4 15. Qxe4 Qa5 16. Qc2 Bf5 17. Qb2 Bd3 18. h4 {½-½ (42) Assaubayeva,B (2389)-Hou,Y (2658) Chess.com INT 2021}) 12... Re8 {[%emt 0:06:24]} (12... g5 $5 13. Bg3 Be6 $11) 13. Be2 {[%emt 0:01:42]} Qd6 {[%emt 0:02:39]} 14. Bg3 {[%emt 0:04:53]} Qe7 {[%emt 0:00:34]} 15. O-O {[%emt 0:02:23]} Bg4 {[%emt 0:01:34]} 16. Bxg4 {[%emt 0:05:21]} Nxg4 {[%emt 0:09:08]} 17. e4 {[%emt 0:08:50]} dxe4 {[%emt 0:03:25]} 18. Nxc4 {[%emt 0:01:19] White wants to play Nd6.} Rad8 {[%emt 0:01:24] Inhibits Nd6.} 19. Rae1 {[%emt 0:08:00] Hoping for f3.} b5 {[%emt 0:04:26][%cal Bb7b5,Bb5b4][%mdl 32]} 20. Nd2 {[%emt 0:01:46]} Nf6 {[%emt 0:01:26] [#]} 21. Nxe4 $1 {[%emt 0:16:22]} Nxe4 {[%emt 0:03:44] The position is equal.} 22. f3 {[%emt 0:00:13]} Qxa3 {[%emt 0:03:29]} 23. fxe4 {[%emt 0:01:07]} b4 $1 {[%emt 0:00:45]} 24. Qf2 {[%emt 0:00:43]} f6 {[%emt 0:02:49] Weighted Error Value: White=0.07 (flawless) /Black=0.06 (flawless)} 1/2-1/2

[Event "SVK ECo-C Extraliga 2021-22"]
[Site "Slovakia"]
[Date "2022.06.11"]
[Round "10.5"]
[White "Borhy, Marcell"]
[Black "Manik, Mikulas"]
[Result "1/2-1/2"]
[ECO "E68"]
[WhiteElo "2381"]
[BlackElo "2376"]
[Annotator "TA"]
[PlyCount "42"]
[EventDate "2021.10.21"]
[EventType "team-tourn"]
[EventCountry "SVK"]
[SourceTitle "playchess.com"]
[Source "ChessBase"]
[SourceQuality "1"]
[TimeControl "40/5400+30:1800+30"]

{[%evp 22,42,31,38,41,33,64,26,50,48,71,71,75,47,119,14,68,-19,-24,-28,-20,-12,0]} 1. Nf3 {[%emt 0:00:03]} Nf6 {[%emt 0:01:48]} 2. c4 {[%emt 0:01:49]} g6 {[%emt 0:00:01]} 3. d4 {[%emt 0:00:08]} Bg7 {[%emt 0:00:02]} 4. g3 {[%emt 0:00:08]} O-O {[%emt 0:00:06]} 5. Bg2 {[%emt 0:00:03]} d6 {[%emt 0:00:02]} 6. O-O {[%emt 0:00:08]} Nbd7 {[%emt 0:00:07]} 7. Nc3 {[%emt 0:00:05]} e5 {[%emt 0:00:07]} 8. e4 {[%emt 0:00:04]} exd4 {[%emt 0:00:15]} 9. Nxd4 {[%emt 0:00:10]} Re8 {[%emt 0:00:03]} 10. h3 {[%emt 0:00:06]} Nc5 {[%emt 0:00:06]} 11. Re1 {[%emt 0:00:26]} Bd7 {[%emt 0:00:03]} 12. Rb1 {[%emt 0:00:12]} a5 {[%emt 0:00:08] E68: King's Indian: Fianchetto: 6...Nbd7 7 0-0 e5 8 e4.} 13. b3 {[%emt 0:00:09]} h5 {[%emt 0:03:40] [#]} 14. f3 $146 {[%emt 0:02:11]} ({Predecessor:} 14. Bf4 Nh7 15. Be3 Ng5 16. Bxg5 Qxg5 17. Nd5 Qd8 18. Nb5 Ne6 19. f4 Rc8 20. h4 {0-1 (52) Ruck,R (2568)-Naiditsch,A (2710) Hungary 2015}) 14... Nh7 {[%emt 0:30:30] White has an edge.} 15. Be3 {[%emt 0:03:37]} c6 {[%emt 0:01:00]} 16. Qd2 {[%emt 0:06:56]} Qc7 {[%emt 0:01:40]} 17. g4 {[%emt 0:09:18]} Rad8 {[%emt 0:23:24]} ({Better is} 17... hxg4 $14 18. hxg4 Be5) 18. a3 {[%emt 0:08:26]} (18. gxh5 $16 gxh5 19. a3) 18... Bc8 {[%emt 0:04:53]} ({Black should play} 18... hxg4 $11 19. hxg4 Bc8) 19. b4 {[%emt 0:08:13]} (19. gxh5 $14 gxh5 20. f4) 19... axb4 {[%emt 0:00:07]} 20. axb4 {[%emt 0:00:05]} hxg4 {[%emt 0:00:36]} 21. hxg4 {[%emt 0:01:04] [#]} ({Don't blunder} 21. bxc5 $2 dxc5 22. Ndb5 Qg3 $17) 21... Qe7 $1 {[%emt 0:06:35] Weighted Error Value: White=0.40/Black=0.25 (precise)} 1/2-1/2